bitfinex-derivatives/quotes_ETHF0:USTF0_20251107
["timestamp","ask_amount","ask_price","bid_price","bid_amount"]
[1762524946522,0.50093,3236.4,3236.3,3.95921708]
[1762524946830,3.2078,3236.9,3236.5,0.5009]
[1762524947025,3.2078,3236.9,3236.5,0.50091]
[1762524947221,0.00356709,3237.2,3236.5,0.50091]
[1762524947527,0.50085,3236.9,3236.8,0.74896]
[1762524947929,8.0,3236.9,3236.3,0.00237708]
[1762524948233,8.0,3236.9,3235.1,3.86431596]
[1762524948234,0.5011,3235.3,3235.2,0.3932]
[1762524948425,0.50115,3235.0,3234.8,2.20126944]
[1762524948623,0.50117,3234.8,3234.6,3.3529]
[1762524948827,0.50117,3234.8,3234.7,0.2481]
[1762524949127,0.50393747,3234.8,3234.7,0.25160519]
[1762524949334,0.50393747,3234.8,3234.7,0.00350519]
[1762524949335,0.75083747,3234.8,3234.7,0.00350519]
[1762524949734,8.75083747,3234.8,3234.7,0.00350519]
[1762524949936,0.50128,3234.1,3234.0,0.1451]
[1762524950234,3.2078,3234.5,3233.7,3.70914]
[1762524950635,0.50132,3233.9,3233.7,3.2078]
[1762524950835,9.099,3234.0,3233.4,0.1451]
[1762524951031,0.50131,3233.9,3233.7,0.00380487]
[1762524951233,0.2469,3233.8,3233.7,0.00380487]
[1762524951434,0.00463507,3234.0,3233.7,0.00380487]
[1762524951637,0.00463507,3234.0,3233.9,0.2481]
[1762524952137,0.00463507,3234.0,3233.7,3.21160487]
[1762524952339,0.50132,3233.9,3233.7,3.21160487]
[1762524952940,0.00463507,3234.0,3233.9,0.2481]
[1762524953730,0.00463507,3234.0,3233.9,8.2481]
[1762524953937,0.50121,3234.6,3234.1,0.50127]
[1762524954130,0.50123,3234.5,3234.4,0.2481]
[1762524954333,0.50121,3234.6,3234.4,0.2481]
[1762524954630,3.70897,3234.9,3234.6,0.1451]
[1762524955142,0.50121,3234.6,3234.4,0.00463507]
[1762524955936,3.2078,3234.9,3234.7,0.2481]
[1762524956137,0.50116,3234.9,3234.7,0.2481]
[1762524956939,0.00463507,3235.0,3234.7,0.2481]
[1762524957441,0.50116,3234.9,3234.7,0.2481]
[1762524957742,0.00463507,3235.0,3234.7,0.2481]
[1762524958240,0.50578507,3235.0,3234.7,0.2481]
[1762524958735,0.50122,3234.5,3234.4,0.00463507]
[1762524958940,0.74812,3234.5,3234.4,0.00463507]
[1762524960039,0.50133,3233.8,3233.7,3.21160487]
[1762524960232,3.96243,3233.8,3233.7,0.00380487]
[1762524960436,4.72559821,3233.8,3233.7,0.00380487]
[1762524960830,0.76316821,3233.8,3233.7,0.00380487]
[1762524961033,0.76316821,3233.8,3233.7,0.25080487]
[1762524961230,0.50131,3233.9,3233.8,0.247]
[1762524961640,0.76174606,3234.1,3234.0,0.3956]
[1762524963230,1.26302606,3234.1,3234.0,0.3956]
[1762524963633,1.26302606,3234.1,3234.0,0.1486]
[1762524963837,0.50131,3233.9,3233.8,3.2078]
[1762524964038,0.76174606,3233.9,3233.8,3.95613]
[1762524964239,0.76174606,3233.9,3233.8,3.4548]
[1762524964540,1.26305606,3233.9,3233.8,3.4548]
[1762524964841,1.26305606,3233.9,3233.8,3.2078]
[1762524966341,0.50133,3233.8,3233.7,0.00380487]
[1762524966541,2.36858906,3233.8,3233.7,0.00380487]
[1762524966739,0.76174606,3233.8,3233.7,0.25080487]
[1762524966940,1.26307606,3233.8,3233.7,0.75214487]
[1762524967134,0.76174606,3233.8,3233.7,0.75214487]
[1762524967335,0.76174606,3233.8,3233.7,3.95994487]
[1762524967738,3.2078,3234.3,3234.2,0.74827]
[1762524967936,0.50125,3234.3,3234.2,3.2078]
[1762524968136,0.50128,3234.2,3233.8,3.2078]
[1762524968338,0.50128,3234.2,3234.1,0.50128]
[1762524968537,0.5013,3234.0,3233.9,0.247]
[1762524968741,0.50131,3233.9,3233.8,3.2078]
[1762524969241,0.50133,3233.8,3233.7,0.00380487]
[1762524969638,0.50133,3233.8,3233.2,3.2078]
[1762524969639,0.50141,3233.3,3233.2,3.2078]
[1762524969847,1.86074546,3233.3,3233.2,3.2078]
[1762524970052,2.4137632,3233.3,3233.2,3.2078]
[1762524970239,0.75471,3233.3,3233.2,3.2078]
[1762524970438,2.4137632,3233.3,3233.2,3.2078]
[1762524970643,2.4137632,3233.3,3233.2,3.21155288]
[1762524970644,1.9123532,3233.3,3233.2,3.21155288]
[1762524970941,0.75471,3233.3,3233.2,3.21155288]
[1762524971143,0.50141,3233.3,3233.2,3.21155288]
[1762524971337,0.50141,3233.3,3233.2,3.71297288]
[1762524971538,1.10433726,3233.3,3233.2,3.95996288]
[1762524971734,1.10433726,3233.4,3233.3,0.74841]
[1762524971949,1.60571726,3233.5,3233.3,0.74841]
[1762524972143,0.50139,3233.4,3233.3,0.74841]
[1762524972344,1.6590532,3233.7,3233.5,0.50137]
[1762524972646,1.6590532,3233.7,3233.3,0.50139]
[1762524972647,0.50138,3233.5,3233.3,0.50139]
[1762524972943,1.10385023,3233.6,3233.5,0.50137]
[1762524973249,1.6590532,3233.7,3233.2,3.21155288]
[1762524973446,0.50136,3233.6,3233.5,0.50137]
[1762524973648,0.50139,3233.4,3233.3,0.247]
[1762524973842,1.10348005,3233.5,3233.4,0.74839]
[1762524974646,1.10348005,3233.6,3233.5,0.74837]
[1762524974850,1.10348005,3234.0,3233.9,0.74831]
[1762524975047,1.10348005,3234.2,3234.1,0.74828]
[1762524975650,1.10348005,3234.3,3234.2,0.50127]
[1762524976145,1.10348005,3234.3,3234.2,0.74827]
[1762524976347,1.10348005,3234.4,3234.3,0.74825]
[1762524976547,1.10348005,3234.4,3234.3,3.95605]
[1762524976849,1.60742752,3234.8,3234.7,0.50119]
[1762524977046,1.10624752,3234.8,3234.7,0.50119]
[1762524977247,0.00276747,3234.8,3234.7,0.50119]
[1762524977738,0.50393747,3234.8,3234.7,0.50119]
[1762524977944,0.50119,3234.7,3234.6,0.247]
[1762524978546,0.00276747,3234.8,3234.7,0.50119]
[1762524978755,0.00276747,3234.8,3234.7,3.70899]
[1762524978951,0.00276747,3234.8,3234.7,11.95599]
[1762524979251,0.50116,3234.9,3234.7,3.2078]
[1762524979455,0.50116,3234.9,3234.7,3.70899]
[1762524979750,0.50116,3234.9,3234.8,0.50117]
[1762524979942,1.26768325,3234.9,3234.8,0.50117]
[1762524980148,1.27139853,3234.9,3234.8,0.50117]
[1762524980449,1.10348005,3235.6,3235.5,0.247]
[1762524980650,1.10348005,3235.6,3235.4,0.50108]
[1762524980651,0.50108,3235.5,3235.4,0.50108]
[1762524980850,1.26737332,3235.5,3235.4,0.50108]
[1762524981158,0.50108,3235.4,3235.3,3.2078]
[1762524981346,1.26737332,3235.4,3235.3,3.2078]
[1762524981540,1.26965639,3235.4,3235.3,3.21100881]
[1762524982148,0.76857639,3235.4,3235.3,3.95910881]
[1762524982345,0.00228307,3235.4,3235.3,3.95910881]
[1762524982952,0.00228307,3235.4,3235.3,11.95910881]
[1762524983150,0.00228307,3235.4,3235.3,3.95910881]
[1762524983350,0.50336307,3235.4,3235.3,3.21100881]
[1762524983551,0.75666307,3235.4,3235.3,3.21100881]
[1762524983752,1.52227637,3235.4,3235.3,0.00320881]
[1762524984856,1.26897637,3235.4,3235.3,0.50430881]
[1762524985160,0.50336307,3235.4,3235.3,3.21100881]
[1762524986155,0.75666307,3235.4,3235.3,0.00320881]
[1762524987446,0.75666307,3235.4,3235.3,0.50430881]
[1762524987650,0.75666307,3235.4,3235.3,0.00320881]
[1762524988560,0.1542,3235.2,3234.2,0.50126]
[1762524988765,0.5013,3234.1,3234.0,0.5013]
[1762524989257,0.1542,3234.6,3233.9,3.2078]
[1762524989457,0.50121,3234.7,3234.5,0.2515]
[1762524989663,0.50118,3234.8,3234.7,0.50118]
[1762524990255,0.50116,3234.9,3234.8,0.50115]
[1762524990451,0.5012,3234.7,3234.6,0.50119]
[1762524990651,0.50118,3234.8,3234.7,0.50117]
[1762524991061,0.1542,3235.2,3234.5,3.2078]
[1762524991062,0.50121,3234.6,3234.5,3.2078]
[1762524991564,0.90921,3234.6,3234.5,3.2078]
[1762524991759,0.65421,3234.6,3234.5,3.2078]
[1762524991963,0.50117,3234.9,3234.8,0.50116]
[1762524992860,0.50121,3234.7,3234.6,0.50121]
[1762524993061,0.50121,3234.6,3234.5,3.96052]
[1762524993564,0.5012,3234.7,3234.6,0.50119]
[1762524994663,0.50115,3235.1,3235.0,0.50114]
[1762524995164,0.50121,3234.6,3234.5,3.4593]
[1762524995368,0.50121,3234.6,3234.5,3.2078]
[1762524995963,0.65421,3234.6,3234.5,3.2078]
[1762524996160,0.90921,3234.6,3234.5,3.2078]
[1762524996360,3.362,3235.2,3234.5,3.2078]
[1762524996867,0.50117,3234.9,3234.8,0.50117]
[1762524997062,0.50121,3234.8,3234.7,0.75269]
[1762524997259,0.50121,3234.8,3234.7,0.50119]
[1762524997866,0.50121,3234.6,3234.5,3.2078]
[1762524998259,0.50121,3234.6,3234.5,3.70902]
[1762524998669,0.5012,3234.7,3234.6,0.50118]
[1762524999173,3.362,3235.2,3234.5,3.2078]
[1762524999470,0.50113,3235.1,3235.0,0.50113]
[1762524999662,0.50111,3235.2,3235.1,0.75263]
[1762524999861,0.5011,3235.3,3235.2,0.50111]
[1762525000071,0.50337307,3235.4,3235.3,0.5011]
[1762525000363,0.00228307,3235.4,3235.3,0.5011]
[1762525000666,0.00228307,3235.4,3235.3,3.9478]
[1762525003770,0.00463507,3235.7,3235.6,0.73995]
[1762525004359,0.00463507,3235.7,3235.6,8.73995]
[1762525004773,0.00804045,3235.7,3235.6,8.73995]
[1762525005164,0.00804045,3235.7,3235.6,0.73995]
[1762525006171,0.00804045,3235.7,3235.3,3.2078]
[1762525006370,0.00804045,3235.7,3235.6,0.73995]
[1762525010981,0.50091,3236.6,3236.5,0.50088]
[1762525011873,0.50091,3236.6,3236.5,0.50310849]
[1762525011874,0.50373582,3236.6,3236.5,0.50310849]
[1762525013180,0.00282582,3236.6,3236.5,0.50313849]
[1762525013681,0.00282582,3236.6,3236.5,0.74203849]
[1762525014279,0.00282582,3236.6,3236.5,0.82263849]
[1762525015388,0.76042582,3236.6,3236.5,0.00222849]
[1762525015587,0.00282582,3236.6,3236.5,0.50313849]
[1762525015986,0.50372582,3236.6,3236.5,0.50313849]
[1762525016483,0.00282582,3236.6,3236.5,0.50313849]
[1762525018386,0.00282582,3236.6,3236.5,0.74203849]
[1762525019491,0.50372582,3236.6,3236.5,0.74203849]
[1762525019687,0.50372582,3236.6,3236.5,0.50313849]
[1762525019893,0.74422582,3236.6,3236.5,0.00222849]
[1762525020288,3.95202582,3236.6,3236.5,0.00222849]
[1762525020490,0.50101,3235.9,3235.8,3.2078]
[1762525020688,0.1458,3235.5,3235.4,3.70888]
[1762525021190,0.50104,3235.8,3235.7,0.50104]
[1762525021389,0.50096,3236.3,3236.2,0.50096]
[1762525021687,0.00282582,3236.6,3236.5,0.75521]
[1762525022988,0.50372582,3236.6,3236.5,0.2543]
[1762525023190,0.50094,3236.3,3235.8,3.2078]
[1762525023389,0.6468,3236.0,3235.9,0.50099]
[1762525023587,0.501,3235.9,3235.8,3.2078]
[1762525023885,0.1458,3236.0,3235.9,0.501]
[1762525025193,0.64679,3236.0,3235.9,0.501]
[1762525025692,0.1458,3236.0,3235.9,0.501]
[1762525026189,0.7415,3235.9,3235.8,3.2078]
[1762525027187,0.50103,3235.7,3235.6,0.50105]
[1762525027388,0.50096,3236.2,3235.4,3.21129537]
[1762525027690,0.64674,3236.5,3236.4,0.50093]
[1762525028494,0.1458,3236.5,3236.4,0.50093]
[1762525028694,0.64671,3236.5,3236.4,0.50093]
[1762525028989,0.50099,3236.0,3235.8,3.70882]
[1762525029198,0.501,3235.9,3235.8,3.70882]
[1762525029497,0.7415,3235.9,3235.8,3.2078]
[1762525030587,0.1458,3236.5,3235.8,3.2078]
[1762525030895,0.50099,3236.0,3235.9,0.501]
[1762525031795,0.1458,3236.0,3235.8,3.2078]
[1762525031984,0.501,3235.9,3235.8,3.2078]
[1762525032387,0.1458,3236.0,3235.8,3.2078]
[1762525032582,0.1458,3236.0,3235.9,0.501]
[1762525032791,0.64679,3236.0,3235.9,0.501]
[1762525035492,0.50095,3236.4,3236.3,0.75523]
[1762525035698,0.1458,3236.5,3236.3,0.2543]
[1762525035904,3.71152582,3236.6,3235.8,3.2078]
[1762525036198,0.50372582,3236.6,3236.5,0.75521]
[1762525037398,0.50372582,3236.6,3236.5,0.2543]
[1762525037590,0.50095,3236.3,3236.2,0.50096]
[1762525037791,0.1458,3236.5,3236.3,0.2543]
[1762525038002,0.64673,3236.5,3236.4,0.50093]
[1762525038397,0.50096,3236.2,3236.1,0.2543]
[1762525038596,0.50096,3236.2,3236.0,3.2078]
[1762525038597,0.50094,3236.4,3236.3,0.50093]
[1762525039605,0.1458,3236.5,3236.4,0.50093]
[1762525039798,0.64671,3236.5,3236.4,0.50093]
[1762525039999,0.50094,3236.3,3236.2,0.50094]
[1762525040805,0.64671,3236.5,3236.4,0.50093]
[1762525041608,0.1458,3236.5,3236.0,3.2078]
[1762525041807,0.74147,3236.1,3236.0,3.70879]
[1762525042201,0.74147,3236.1,3236.0,3.2078]
[1762525043003,0.74147,3236.1,3236.0,3.70879]
[1762525043811,0.74155,3235.7,3235.6,3.2078]
[1762525044007,0.50107,3235.5,3235.4,0.00349537]
[1762525044208,0.88737,3235.5,3235.4,0.00349537]
[1762525046311,0.1458,3236.0,3235.9,0.501]
[1762525046516,0.74144,3236.4,3236.3,0.50094]
[1762525046814,3.21062582,3236.6,3235.9,3.2078]
[1762525047006,0.74149,3236.1,3236.0,0.50099]
[1762525047208,0.50106,3235.6,3235.5,0.50104]
[1762525047408,0.1458,3236.5,3235.5,3.2078]
[1762525047607,0.1458,3236.0,3235.9,0.501]
[1762525048003,0.50104,3235.7,3235.6,0.50104]
[1762525048209,0.88737,3235.5,3235.4,0.00349537]
[1762525055018,0.64679,3236.0,3235.8,0.50102]
[1762525055323,0.2464,3235.9,3235.8,0.50102]
[1762525055524,0.64679,3236.0,3235.9,0.50101]
[1762525056126,0.50104,3235.7,3235.5,3.2078]
[1762525056326,0.64737,3235.5,3235.4,0.00349537]
[1762525056822,0.1463,3235.5,3235.4,0.50457537]
[1762525057128,0.50101,3235.9,3235.8,0.50101]
[1762525057813,0.1458,3236.0,3235.9,0.50101]
[1762525058018,0.50096,3236.2,3236.1,0.50096]
[1762525059522,0.50097,3236.1,3236.0,0.50098]
[1762525059827,0.501,3236.0,3235.6,3.2078]
[1762525060032,0.50097,3236.1,3236.0,0.50098]
[1762525061228,0.50096,3236.2,3236.1,0.50095]
[1762525061432,0.50094,3236.4,3236.3,0.50094]
[1762525062716,0.50097,3236.3,3236.2,0.50096]
[1762525062922,0.50097,3236.1,3236.0,3.70879]
[1762525064128,0.73377,3236.1,3236.0,3.2078]
[1762525064435,0.73377,3236.1,3236.0,3.70879]
[1762525065134,0.73383,3235.8,3235.7,0.50101]
[1762525065324,0.73383,3235.8,3235.6,3.2078]
[1762525065629,0.50103,3235.8,3235.7,0.50104]
[1762525065829,0.50101,3235.9,3235.8,0.50101]
[1762525066220,0.50104,3235.7,3235.6,0.2397]
[1762525066425,0.50104,3235.7,3235.6,0.74075]
[1762525066629,0.1495,3236.0,3235.4,0.50456537]
[1762525066833,0.73382,3235.9,3235.8,0.50102]
[1762525068229,0.50104,3235.8,3235.7,0.50103]
[1762525068934,0.73384,3235.8,3235.7,0.50103]
[1762525069528,0.50101,3235.9,3235.8,0.50101]
[1762525069722,0.50101,3235.9,3235.8,0.74071]
[1762525070122,0.1495,3236.0,3235.9,0.50101]
[1762525070327,0.65049,3236.0,3235.9,0.50101]
[1762525071131,3.70874,3236.3,3236.2,0.2397]
[1762525071334,0.65049,3236.0,3235.5,5.49057087]
[1762525071534,0.65049,3236.0,3235.9,0.2397]
[1762525071734,0.50103,3235.8,3235.6,0.50105]
[1762525072040,0.50103,3235.8,3235.7,0.50104]
[1762525072730,0.50101,3235.9,3235.8,0.50101]
[1762525073234,0.50101,3235.9,3235.4,2.22456624]
[1762525073235,0.1495,3235.5,3235.4,0.00349537]
[1762525073835,0.3823,3235.5,3235.4,0.00349537]
[1762525074032,0.88337,3235.5,3235.4,0.00349537]
[1762525074235,0.3823,3235.5,3235.4,0.00349537]
[1762525074636,0.88337,3235.5,3235.4,0.00349537]
[1762525076639,0.88337,3235.5,3235.4,0.50457537]
[1762525076942,0.88337,3235.5,3235.4,0.00349537]
[1762525077442,0.88337,3235.5,3234.5,5.42887087]
[1762525077443,0.50119,3234.8,3234.5,5.42887087]
[1762525077741,0.50119,3234.8,3234.5,3.2078]
[1762525078432,0.73401,3234.7,3234.6,0.50119]
[1762525078632,0.73401,3234.7,3234.5,3.71205446]
[1762525078633,0.50119,3234.7,3234.5,3.71205446]
[1762525078857,0.00463507,3235.0,3234.9,0.74086]
[1762525079138,0.00463507,3235.0,3234.9,3.94866]
[1762525080135,0.00463507,3235.0,3234.9,0.2397]
[1762525080337,0.64947507,3235.0,3234.5,0.00303446]
[1762525080734,0.00463507,3235.0,3234.9,3.95816]
[1762525081135,0.00463507,3235.0,3234.9,11.95816]
[1762525082447,0.00463507,3235.0,3234.9,11.457]
[1762525082647,0.50577507,3235.0,3234.9,3.95815]
[1762525083038,0.50577507,3235.0,3234.9,3.457]
[1762525083545,0.89527507,3235.0,3234.9,3.2078]
[1762525084043,0.1437,3234.5,3233.9,0.2492]
[1762525084345,0.1437,3234.5,3233.7,3.2078]
[1762525084346,0.50133,3233.8,3233.7,3.457]
[1762525084748,0.50131,3233.9,3233.8,0.50132]
[1762525084944,0.50355167,3233.9,3233.8,0.2524526]
[1762525086043,0.00224167,3233.9,3233.8,0.7537826]
[1762525086846,0.50355167,3233.9,3233.8,0.0032526]
[1762525087740,0.00224167,3233.9,3233.8,0.0032526]
[1762525087943,0.50355167,3233.9,3233.8,0.7537826]
[1762525088353,0.50355167,3233.9,3233.8,0.2524526]
[1762525088556,3.95715167,3233.9,3233.8,0.0032526]
[1762525088848,0.1437,3233.5,3232.7,3.2078]
[1762525089052,0.50148,3232.8,3232.7,3.2078]
[1762525089451,0.50147,3232.9,3232.8,0.50147]
[1762525089646,3.2078,3233.7,3233.4,0.2492]
[1762525089842,3.2078,3234.1,3233.6,0.50136]
[1762525090047,3.2078,3234.1,3233.4,0.00270143]
[1762525090247,0.3895,3233.5,3233.4,0.00270143]
[1762525090446,3.2078,3234.1,3233.5,0.50137]
[1762525090648,0.50136,3233.6,3233.5,0.75057]
[1762525091844,0.64507,3233.5,3233.4,0.0073365]
[1762525092053,3.2078,3233.7,3233.6,0.50136]
[1762525093554,3.70914,3233.7,3233.6,0.50136]
[1762525093751,3.2078,3233.7,3233.6,0.75056]
[1762525094051,0.00463507,3234.0,3233.8,0.75053]
[1762525094646,0.00463507,3234.0,3233.8,8.75053]
[1762525095051,4.167e-05,3233.9,3233.8,14.93533]
[1762525095448,4.167e-05,3233.9,3233.8,0.75053]
[1762525095849,4.167e-05,3233.9,3233.8,8.75053]
[1762525097454,0.50118,3234.9,3234.8,0.50117]
[1762525098350,0.5012,3234.7,3234.6,0.50119]
[1762525098651,0.5012,3234.6,3234.5,0.2492]
[1762525099152,0.74705,3234.3,3234.2,3.2078]
[1762525099457,0.1437,3234.5,3233.9,9.553]
[1762525099757,0.50126,3234.3,3234.2,0.50125]
[1762525099956,0.50124,3234.4,3234.3,0.50123]
[1762525100154,3.2078,3234.6,3234.5,0.75042]
[1762525100358,0.64492,3234.5,3234.4,0.50123]
[1762525101158,3.709,3234.6,3234.5,0.50122]
[1762525102154,0.50126,3234.3,3234.2,0.50125]
[1762525102458,0.1437,3234.5,3234.4,0.50123]
[1762525102653,3.2078,3234.6,3234.5,0.75042]
[1762525102854,0.50117,3234.8,3234.7,0.50117]
[1762525103256,0.74701,3234.7,3234.6,0.5012]
[1762525104158,0.1437,3234.5,3234.2,3.2078]
[1762525104360,0.1437,3234.5,3234.4,0.50123]
[1762525104855,0.50119,3234.7,3234.6,0.5012]
[1762525105062,0.50119,3234.8,3234.7,0.50117]
[1762525105258,0.50334597,3234.9,3234.8,0.75037]
[1762525105657,0.00218597,3234.9,3234.8,0.75037]
[1762525106860,0.00218597,3234.9,3234.5,0.071]
[1762525106861,0.00218597,3234.9,3234.6,0.5012]
[1762525107060,0.2458,3234.8,3234.4,9.55]
[1762525107455,0.2458,3234.8,3234.7,0.50119]
[1762525107657,0.2458,3234.7,3234.6,0.5012]
[1762525107853,0.3895,3234.5,3234.3,0.50125]
[1762525108053,0.89072,3234.5,3234.0,9.549]
[1762525108254,0.2458,3234.1,3234.0,0.50128]
[1762525108463,0.74708,3234.1,3234.0,0.50128]
[1762525108662,0.50128,3234.1,3234.0,0.50128]
[1762525108962,0.50127,3234.2,3234.1,0.50125]
[1762525109159,0.3829,3234.5,3234.4,0.50123]
[1762525109366,0.00218597,3234.9,3233.5,0.0616]
[1762525109367,0.00218597,3234.9,3234.8,0.50117]
[1762525109553,0.50119,3234.7,3234.2,12.7558]
[1762525109757,0.50335597,3234.9,3234.8,0.50117]
[1762525110763,0.00218597,3234.9,3234.8,0.74877]
[1762525112964,0.00218597,3234.9,3234.8,10.29577]
[1762525113467,0.50134,3233.7,3233.4,2.22530651]
[1762525113758,1.16312649,3233.4,3233.0,0.1448]
[1762525113965,0.79575633,3233.3,3233.0,0.1448]
[1762525114166,0.50142,3233.2,3233.0,9.6908]
[1762525114552,0.50142,3233.2,3233.0,9.69408197]
[1762525115351,0.50142,3233.2,3233.0,0.14808197]
[1762525116054,0.00463507,3233.4,3233.3,0.2476]
[1762525117259,0.50132,3233.9,3233.5,0.1448]
[1762525117552,3.2078,3234.2,3234.0,0.1448]
[1762525117759,0.50128,3234.1,3234.0,0.1448]
[1762525117959,0.50134,3233.7,3233.5,0.1448]
[1762525118167,0.50134,3233.7,3233.5,3.6068]
[1762525118962,3.2078,3233.8,3233.5,3.6068]
[1762525119162,3.2078,3233.8,3233.7,0.2476]
[1762525119761,0.50134,3233.7,3233.6,9.546]
[1762525120456,0.50134,3233.7,3233.5,0.1448]
[1762525120658,0.50142,3233.2,3233.0,0.14808197]
[1762525120863,0.1038,3233.1,3233.0,0.14808197]
[1762525121263,0.1038,3233.1,3233.0,0.00328197]
[1762525122469,0.1038,3233.1,3232.8,0.00463507]
[1762525122470,0.1038,3232.9,3232.8,0.00463507]
[1762525123370,0.1005,3232.9,3232.8,0.00779314]
[1762525126679,8.1005,3232.9,3232.8,0.00779314]
[1762525128078,8.0,3232.9,3232.0,0.1448]
[1762525128275,0.50159,3232.1,3232.0,0.1448]
[1762525128877,3.2078,3232.3,3232.0,0.4358]
[1762525129071,0.50158,3232.2,3232.0,0.43816963]
[1762525130077,3.21032193,3232.3,3232.0,0.43816963]
[1762525130281,0.50157,3232.2,3232.0,0.14716963]
[1762525130871,0.59429,3232.1,3232.0,0.00236963]
[1762525131082,0.50162,3231.9,3231.8,0.00463507]
[1762525131286,3.80212,3231.9,3231.8,0.00463507]
[1762525132181,3.80212,3231.9,3231.8,0.00819932]
[1762525134879,3.70942,3231.9,3231.8,0.00819932]
[1762525135575,3.79972,3231.9,3231.8,0.00819932]
[1762525135986,3.70942,3231.9,3231.8,0.00819932]
[1762525137492,0.50162,3231.9,3231.8,0.50982932]
[1762525137685,0.00463507,3232.2,3231.8,0.50982932]
[1762525137686,0.00463507,3232.2,3232.0,0.172]
[1762525137886,0.00463507,3232.2,3232.0,0.463]
[1762525137887,0.50159,3232.1,3232.0,0.463]
[1762525138089,0.50159,3232.1,3232.0,0.9646]
[1762525138284,0.00463507,3232.2,3232.0,0.463]
[1762525138589,0.50159,3232.1,3232.0,0.172]
[1762525138790,0.00463507,3232.2,3232.1,0.77839]
[1762525138984,0.03953507,3232.2,3232.0,0.172]
[1762525139185,0.50159,3232.1,3232.0,0.172]
[1762525140592,0.53652,3231.9,3231.8,0.00819932]
[1762525140791,3.74432,3231.9,3231.8,0.00819932]
[1762525141386,0.5018,3230.7,3230.6,3.2078]
[1762525141890,0.50182,3230.6,3230.5,0.172]
[1762525142092,0.50187,3230.3,3230.2,0.2768]
[1762525142390,0.50187,3230.3,3230.2,0.28019693]
[1762525142694,3.70965,3230.5,3230.2,0.00339693]
[1762525142890,3.2078,3230.5,3230.2,0.00339693]
[1762525143191,0.50187,3230.3,3230.2,0.00339693]
[1762525143489,0.50186,3230.4,3230.2,0.28019693]
[1762525143988,0.50186,3230.4,3230.2,0.00339693]
[1762525144191,0.00464303,3230.6,3230.5,0.4338]
[1762525145195,0.0349,3230.3,3230.2,0.00339693]
[1762525145397,3.74456,3230.3,3230.2,0.00339693]
[1762525145790,0.50205,3229.1,3228.5,0.157]
[1762525145992,3.70985,3229.1,3228.7,0.50211]
[1762525146193,3.70985,3229.1,3228.5,0.157]
[1762525146388,3.70985,3229.1,3228.5,0.65913]
[1762525146693,3.70985,3229.1,3228.6,0.50212]
[1762525146893,3.71284721,3229.1,3229.0,0.15995437]
[1762525147095,3.21079721,3229.1,3229.0,0.15995437]
[1762525147596,3.24229721,3229.1,3229.0,0.00295437]
[1762525147896,3.21079721,3229.1,3229.0,0.15995437]
[1762525148495,3.24229721,3229.1,3229.0,0.00295437]
[1762525149791,3.24229721,3229.1,3229.0,0.15995437]
[1762525149989,3.21079721,3229.1,3229.0,0.15995437]
[1762525150194,3.24229721,3229.1,3229.0,0.00295437]
[1762525150488,3.24229721,3229.1,3229.0,0.15995437]
[1762525150695,3.21079721,3229.1,3229.0,0.15995437]
[1762525150895,0.00299721,3229.1,3229.0,0.43675437]
[1762525151401,1.29612192,3229.9,3229.7,0.50196]
[1762525151591,0.79419192,3229.9,3229.7,0.50196]
[1762525151893,3.2078,3230.0,3229.5,0.157]
[1762525151894,3.2078,3230.0,3229.8,0.77873]
[1762525152094,0.50189,3230.2,3230.0,0.157]
[1762525152296,0.00307894,3230.2,3230.0,0.65891]
[1762525152488,0.00307894,3230.2,3230.1,0.2768]
[1762525152692,0.00307894,3230.2,3230.1,8.2768]
[1762525152896,0.00464303,3230.6,3230.5,0.77863]
[1762525153292,0.00464303,3230.6,3230.5,8.77863]
[1762525153897,0.00728003,3230.6,3230.5,8.77863]
[1762525154500,0.5017,3231.4,3230.5,8.0]
[1762525154697,0.50171,3231.3,3231.1,0.50173]
[1762525154896,0.79532568,3231.5,3231.0,0.157]
[1762525155097,0.50174,3231.1,3231.0,0.157]
[1762525155399,0.50174,3231.1,3231.0,0.65876]
[1762525155600,0.00355301,3231.1,3231.0,0.93556]
[1762525155800,0.50529301,3231.1,3231.0,0.4338]
[1762525156001,0.50529301,3231.1,3231.0,0.93556]
[1762525156196,0.50529301,3231.1,3231.0,0.157]
[1762525156397,0.55009301,3231.1,3231.0,0.157]
[1762525156994,0.54657,3230.9,3230.8,3.2078]
[1762525157398,0.54659,3230.8,3230.7,0.00464303]
[1762525157707,1.34298416,3230.8,3230.7,0.00464303]
[1762525158107,0.50179,3230.8,3230.7,0.50644303]
[1762525158300,0.00355301,3231.1,3231.0,0.157]
[1762525158603,0.00355301,3231.1,3230.7,0.00464303]
[1762525158604,0.50179,3230.8,3230.7,0.00464303]
[1762525159796,0.50178,3230.8,3230.7,0.50642303]
[1762525160001,0.50178,3230.8,3230.7,0.00464303]
[1762525160200,0.50178,3230.8,3230.7,0.50644303]
[1762525160402,0.79735936,3230.8,3230.7,0.00464303]
[1762525160596,0.50178,3230.8,3230.7,0.00464303]
[1762525161207,0.50176,3231.0,3230.9,0.50177]
[1762525161399,0.00355301,3231.1,3231.0,0.65875]
[1762525161599,0.50529301,3231.1,3231.0,0.157]
[1762525161801,1.30282133,3231.1,3231.0,0.157]
[1762525162005,0.80108133,3231.1,3231.0,0.65875]
[1762525162202,0.00355301,3231.1,3231.0,0.93555]
[1762525162707,0.80108133,3231.1,3231.0,0.93555]
[1762525163205,0.00355301,3231.1,3231.0,0.93555]
[1762525163906,0.50529301,3231.1,3231.0,0.157]
[1762525164410,0.00355301,3231.1,3231.0,0.93555]
[1762525164608,0.50529301,3231.1,3231.0,0.93555]
[1762525164802,0.50529301,3231.1,3231.0,0.157]
[1762525165003,0.50178,3230.8,3230.7,3.21244303]
[1762525165408,0.50178,3230.8,3230.7,3.71424303]
[1762525165813,0.54658,3230.8,3230.7,3.21244303]
[1762525166011,3.75438,3230.8,3230.7,0.00464303]